fUST/lending_fUST_20250826
["ID","MTS","AMOUNT","RATE_DAILY","PERIOD"]
[381445235,1756206632485,-10602.57047266,0.00029577,2]
[381445259,1756206638302,-199.0,0.00029389,120]
[381445260,1756206638312,-311.9260657,0.00029477,2]
[381445261,1756206638322,-172.63296072,0.00029576,2]
[381445262,1756206638332,-500.0,0.00029576,2]
[381445263,1756206638341,-288.51853703,0.00029576,2]
[381445264,1756206638351,-153.11505066,0.00029576,2]
[381445265,1756206638361,-645.48701588,0.00029576,2]
[381445266,1756206638371,-306.25178326,0.00029576,2]
[381445267,1756206638382,-382.19886427,0.00029576,2]
[381445268,1756206638392,-500.0,0.00029576,2]
[381445269,1756206638404,-500.0,0.00029576,2]
[381445270,1756206638419,-305.05310436,0.00029576,2]
[381445271,1756206638430,-344.39350483,0.00029576,2]
[381445272,1756206638440,-509.36795107,0.00029576,2]
[381445273,1756206638453,-500.0,0.00029576,2]
[381445274,1756206638463,-500.0,0.00029576,2]
[381445276,1756206638474,-500.0,0.00029576,2]
[381445277,1756206638484,-500.0,0.00029576,2]
[381445278,1756206638494,-500.0,0.00029576,2]
[381445279,1756206638503,-601.64617718,0.00029576,2]
[381445280,1756206638513,-39397.42952734,0.00029577,2]
[381445281,1756206638522,-300.0,0.00029579,20]
[381445282,1756206638532,-300.0,0.00029579,20]
[381445283,1756206638541,-300.0,0.00029579,20]
[381445284,1756206638551,-300.0,0.00029579,20]
[381445285,1756206638560,-300.0,0.00029579,20]
[381445286,1756206638569,-300.0,0.00029579,20]
[381445287,1756206638579,-300.0,0.00029579,20]
[381445288,1756206638588,-300.0,0.00029579,20]
[381445289,1756206638598,-300.0,0.00029579,20]
[381445290,1756206638607,-300.0,0.00029579,20]
[381445291,1756206638617,-300.0,0.00029579,20]
[381445292,1756206638627,-300.0,0.00029579,20]
[381445293,1756206638636,-300.0,0.00029579,20]
[381445294,1756206638646,-300.0,0.00029579,20]
[381445295,1756206638655,-300.0,0.00029579,20]
[381445296,1756206638665,-181.38527,0.00029589,120]
[381445297,1756206638675,-500.0,0.000296,5]
[381445298,1756206638684,-500.0,0.000296,5]
[381445299,1756206638694,-150.0,0.0003,30]
[381445300,1756206638704,-161.0,0.0003,14]
[381445301,1756206638713,-453.36027483,0.00030067,5]
[381445302,1756206638723,-500.0,0.00030148,5]
[381445303,1756206638732,-1000.0,0.00030148,5]
[381445304,1756206638742,-600.0,0.0003017,20]
[381445305,1756206638752,-200.0,0.000304,120]
[381445306,1756206638762,-150.0,0.00030556,60]
[381445307,1756206638772,-307.0,0.00030556,14]
[381445308,1756206638782,-1500.0,0.00030696,5]
[381445309,1756206638791,-28024.0,0.00031,120]
[381445310,1756206638801,-217.18350301,0.00031,120]
[381445311,1756206638811,-160.0,0.00031,120]
[381445312,1756206638820,-529.4218694,0.00031,120]
[381445313,1756206638830,-499.16,0.00031214,10]
[381445314,1756206638839,-21113.376677,0.00031234,2]
[381445315,1756206638848,-2000.0,0.00031244,5]
[381445316,1756206638858,-160.0,0.00031364,2]
[381445317,1756206638867,-160.0,0.00031364,2]
[381445318,1756206638877,-232.53539143,0.00031364,2]
[381445319,1756206638888,-160.0,0.00031377,2]
[381445320,1756206638897,-160.0,0.00031408,2]
[381445321,1756206638906,-250.0,0.00031433,2]
[381445322,1756206638917,-2500.0,0.00031792,5]
[381445323,1756206638926,-1680.0,0.0003189,3]
[381445324,1756206638936,-420.0,0.0003189,2]
[381445325,1756206638945,-420.0,0.0003189,3]
[381445326,1756206638955,-3601.98,0.000319,7]
[381445327,1756206638965,-938.07046889,0.00032187,2]
[381445328,1756206638975,-326.54887145,0.00032338,2]
[381445329,1756206638984,-500.0,0.00032338,2]
[381445330,1756206638994,-500.0,0.00032338,2]
[381445331,1756206639004,-500.0,0.00032338,2]
[381445332,1756206639013,-500.0,0.00032338,2]
[381445333,1756206639023,-500.0,0.00032338,2]
[381445334,1756206639032,-500.0,0.00032338,2]
[381445335,1756206639041,-478.74852922,0.00032338,2]
[381445336,1756206639050,-500.0,0.00032338,2]
[381445337,1756206639059,-3000.0,0.0003234,5]
[381445338,1756206639068,-1598.14580068,0.00032888,5]
[381445339,1756206639079,-720.0,0.00033187,20]
[381445340,1756206639089,-362.63863407,0.0003326,2]
[381445341,1756206639098,-180.27679622,0.00033358,10]
[381445342,1756206639107,-4563.132097,0.00033457,2]
[381445343,1756206639117,-412.0,0.00034385,3]
[381445344,1756206639126,-587.0,0.00034385,2]
[381445345,1756206639136,-160.0,0.00035059,2]
[381445346,1756206639149,-217.18350301,0.0003526,7]
[381445347,1756206639158,-500.0,0.00035616,7]
[381445348,1756206639168,-500.0,0.00035616,7]
[381445349,1756206639179,-191.41605319,0.00035616,7]
[381445350,1756206639188,-283.0,0.00036126,120]
[381445351,1756206639198,-281.0,0.00036159,7]
[381445352,1756206639208,-281.0,0.00036303,2]
[381445353,1756206639218,-283.0,0.00036374,2]
[381445354,1756206639228,-151.0,0.000365,16]
[381445356,1756206639238,-864.0,0.00036505,20]
[381445358,1756206639248,-3601.98,0.000366,7]
[381445359,1756206639257,-845.07960918,0.000366,7]
[381445360,1756206639267,-281.0,0.00036749,7]
[381445362,1756206639277,-181.38527,0.00036986,120]
[381445364,1756206639286,-823.0,0.00037076,2]
[381445366,1756206639296,-284.0,0.00037181,2]
[381445368,1756206639305,-281.0,0.00037299,7]
[381445370,1756206639314,-151.0,0.000374,19]
[381445372,1756206639323,-974.0,0.00037634,2]
[381445374,1756206639333,-2156.0,0.00037634,2]
[381445376,1756206639343,-638.0,0.00037634,2]
[381445378,1756206639352,-281.0,0.00037822,2]
[381445380,1756206639361,-218.5,0.00038033,2]
[381445382,1756206639371,-150.0,0.00038033,2]
[381445383,1756206639380,-579.74,0.0003808,10]
[381445385,1756206639391,-590.59089894,0.0003809,2]
[381445387,1756206639400,-2360.00123217,0.0003809,2]
[381445388,1756206639409,-535.00128303,0.0003809,2]
[381445389,1756206639418,-2137.865127,0.0003809,2]
[381445390,1756206639428,-21113.376677,0.00038105,3]
[381445391,1756206639437,-845.07960918,0.00038105,3]
[381445392,1756206639447,-281.0,0.0003814,2]
[381445394,1756206639458,-500.0,0.00038194,2]
[381445396,1756206639466,-161.64253542,0.00038194,2]
[381445398,1756206639475,-151.0,0.000383,10]
[381445399,1756206639485,-500.0,0.00038356,120]
[381445415,1756206639686,-281.0,0.00038443,120]
[381445417,1756206639696,-500.0,0.00038468,2]
[381445419,1756206639707,-283.0,0.00038602,2]
[381445421,1756206639716,-500.0,0.00038742,2]
[381445422,1756206639725,-503.9832434,0.0003879,2]
[381445423,1756206639735,-207.677,0.00038828,2]
[381445424,1756206639745,-222.323,0.00038828,2]
[381445425,1756206639754,-204.131,0.00038828,2]
[381445426,1756206639764,-257.299,0.00038828,2]
[381445427,1756206639774,-261.649,0.00038828,2]
[381445428,1756206639783,-220.13,0.00038828,2]
[381445429,1756206639792,-259.66,0.0003888,3]
[381445430,1756206639801,-779.0,0.0003888,3]
[381445431,1756206639811,-1124.05,0.0003888,3]
[381445432,1756206639820,-168907.013416,0.0003889,3]
[381445433,1756206639830,-217.18350301,0.0003889,3]
[381445434,1756206639839,-370000.0,0.000389,2]
[381445435,1756206639848,-3601.98,0.000389,7]
[381445436,1756206639858,-500.0,0.00038904,120]
[381445437,1756206639868,-500.0,0.00039,30]
[381445438,1756206639877,-224.0,0.00039016,2]
[381445439,1756206639887,-283.0,0.00039059,7]
[381445441,1756206639897,-281.0,0.00039091,2]
[381445442,1756206639907,-151.0,0.000392,13]
[381445443,1756206639916,-503.98324336,0.00039293,2]
[381445444,1756206639926,-500.0,0.00039374,7]
[381445445,1756206639936,-499.3,0.00039403,7]
[381445446,1756206639945,-500.0,0.00039417,5]
[381445447,1756206639956,-500.0,0.00039417,2]
[381445448,1756206639965,-281.0,0.0003944,2]
[381445449,1756206639974,-281.0,0.00039444,2]
[381445450,1756206639984,-500.0,0.00039452,120]
[381445451,1756206639994,-160.915713,0.00039473,20]
[381445452,1756206640003,-281.0,0.00039495,2]
[381445453,1756206640013,-281.0,0.00039614,7]
[381445454,1756206640024,-18023.4690605,0.00039728,2]
[381445455,1756206640034,-284.0,0.00039728,7]
[381445456,1756206640043,-284.0,0.00039762,120]
[381445457,1756206640053,-503.98324336,0.00039795,2]
[381445458,1756206640062,-160.915713,0.0003985,2]
[381445459,1756206640073,-281.0,0.00039854,2]
[381445460,1756206640082,-151.0,0.00039888,2]
[381445461,1756206640092,-200.0,0.0003989,120]
[381445462,1756206640102,-200.0,0.0003989,3]
[381445463,1756206640112,-191.429803,0.000399,2]
[381445464,1756206640122,-4808.18,0.0003991,30]
[381445465,1756206640133,-500.0,0.00039965,5]
[381445466,1756206640145,-585.37547107,0.00039965,2]
[381445467,1756206640155,-21113.376677,0.00039967,3]
[381445468,1756206640164,-1152.0,0.00039977,5]
[381445469,1756206640175,-151.0,0.00039999,120]
[381445470,1756206640183,-1888.0,0.00039999,60]
[381445471,1756206640192,-156.587,0.00039999,120]
[381445472,1756206640203,-1957.856,0.00039999,60]
[381445473,1756206640213,-162.380719,0.00039999,120]
[381445474,1756206640223,-2030.296672,0.00039999,60]
[381445475,1756206640232,-168.3888056,0.00039999,120]
[381445476,1756206640241,-250.0,0.00039999,120]
[381445477,1756206640250,-174.61919141,0.00039999,120]
[381445478,1756206640259,-2105.41764886,0.00039999,60]
[381445479,1756206640268,-250.0,0.00039999,120]
[381445480,1756206640278,-2183.31810187,0.00039999,60]
[381445481,1756206640287,-181.08010149,0.00039999,120]
[381445482,1756206640296,-2264.10087164,0.00039999,60]
[381445483,1756206640307,-187.78006525,0.00039999,120]
[381445484,1756206640316,-2347.87260389,0.00039999,60]
[381445485,1756206640326,-194.72792766,0.00039999,120]
[381445486,1756206640335,-201.93286099,0.00039999,120]
[381445487,1756206640344,-209.40437684,0.00039999,120]
[381445488,1756206640353,-200.02404106,0.00039999,120]
[381445489,1756206640363,-2283.90733756,0.0004,60]
[381445490,1756206640372,-28394.51644943,0.0004,30]
[381445491,1756206640381,-1000.0,0.0004,120]
[381445492,1756206640391,-1000.0,0.0004,60]
[381445493,1756206640400,-500.0,0.0004,120]
[381445494,1756206640410,-217.18350301,0.0004,30]
[381445495,1756206640420,-160.0,0.0004,30]
[381445496,1756206640429,-529.4218694,0.0004,30]
[381445497,1756206640439,-877.0,0.00040042,7]
[381445498,1756206640449,-151.0,0.000401,19]
[381445499,1756206640460,-1000.0,0.00040156,30]
[381445500,1756206640470,-168.0,0.00040173,2]
[381445501,1756206640489,-600.0,0.0004024,2]
[381445502,1756206640509,-519.32,0.0004025,3]
[381445503,1756206640520,-160.915713,0.0004025,7]
[381445504,1756206640530,-150.0,0.00040278,120]
[381445505,1756206640540,-150.0,0.00040278,120]
[381445506,1756206640550,-150.0,0.00040278,120]
[381445507,1756206640559,-150.0,0.00040278,120]
[381445508,1756206640569,-160.0,0.00040281,2]
[381445509,1756206640579,-503.98324336,0.00040298,2]
[381445510,1756206640588,-168.0,0.00040303,2]
[381445511,1756206640598,-217.18350301,0.00040438,2]
[381445512,1756206640607,-216.09257821,0.00040442,2]
[381445513,1756206640617,-845.07960918,0.00040449,2]
[381445514,1756206640627,-376.39720582,0.00040453,2]
[381445515,1756206640636,-500.0,0.00040482,30]
[381445516,1756206640646,-16317.35266544,0.000405,120]
[381445517,1756206640656,-2000.0,0.000405,60]
[381445518,1756206640665,-187.09935736,0.00040503,3]
[381445519,1756206640675,-1018.1723955,0.00040547,2]
[381445520,1756206640684,-371.41,0.00040547,120]
[381445521,1756206640694,-877.0,0.00040574,120]
[381445522,1756206640703,-3601.98,0.000406,7]
[381445523,1756206640712,-168.0,0.00040603,2]
[381445524,1756206640722,-500.0,0.00040631,30]
[381445525,1756206640731,-974.0,0.00040634,2]
[381445526,1756206640741,-2156.0,0.00040634,2]
[381445527,1756206640751,-638.0,0.00040634,2]
[381445528,1756206640761,-151.97768795,0.00040659,2]
[381445529,1756206640783,-286.53370678,0.00040659,2]
[381445530,1756206640798,-600.0,0.00040659,2]
[381445531,1756206640807,-1000.0,0.00040763,30]
[381445532,1756206640818,-2200.0,0.00040768,14]
[381445533,1756206640828,-2256.09765114,0.000408,120]
[381445534,1756206640838,-151.0,0.000408,30]
[381445535,1756206640847,-151.0,0.000408,30]
[381445536,1756206640856,-151.0,0.000408,30]
[381445537,1756206640866,-151.0,0.000408,30]
[381445538,1756206640876,-503.98324336,0.000408,2]
[381445539,1756206640886,-9870.85808037,0.000408,2]
[381445540,1756206640896,-160.0,0.00040856,7]
[381445541,1756206640906,-500.0,0.00040873,5]
[381445542,1756206640916,-151.0,0.0004089,30]
[381445543,1756206640926,-151.0,0.0004089,30]
[381445544,1756206640935,-151.0,0.0004089,30]
[381445545,1756206640945,-151.0,0.0004089,30]
[381445546,1756206640957,-151.0,0.0004089,30]
[381445547,1756206640966,-151.0,0.0004089,30]
[381445548,1756206640976,-227.50435304,0.0004089,3]
[381445549,1756206640986,-3753.87776674,0.0004089,6]
[381445550,1756206640995,-200000.0,0.000409,60]
[381445551,1756206641005,-84992.60205971,0.000409,60]
[381445552,1756206641020,-115007.39794029,0.000409,60]
[381445553,1756206641030,-143001.2626584,0.000409,60]
[381445912,1756206646423,-311.9260657,0.00034134,2]
[381445913,1756206646433,-311.9260657,0.0003879,2]
[381445914,1756206646442,-800.0,0.00039451,7]
[381445915,1756206646451,-800.0,0.00040273,7]
[381445916,1756206646463,-151.0,0.000408,2]
[381445917,1756206646472,-151.0,0.000408,2]
[381445918,1756206646481,-56998.7373416,0.000409,60]
[381445919,1756206646491,-151283.3,0.000409,60]
[381445920,1756206646500,-1370.81,0.000409,7]
[381445921,1756206646510,-43349.62,0.000409,14]
[381445922,1756206646519,-4995.58,0.000409,14]
[381445923,1756206646528,-151.0,0.000409,30]
[381445924,1756206646538,-151.0,0.000409,30]
[381445925,1756206646547,-214.923547,0.000409,30]
[381445926,1756206646557,-151.0,0.000409,30]
[381445927,1756206646566,-151.0,0.000409,30]
[381445928,1756206646576,-151.0,0.000409,30]
[381445929,1756206646585,-151.0,0.000409,30]
[381445930,1756206646595,-151.0,0.000409,30]
[381445931,1756206646604,-151.0,0.000409,30]
[381445932,1756206646614,-151.0,0.000409,30]
[381445933,1756206646624,-151.0,0.000409,30]
[381445934,1756206646633,-151.0,0.000409,30]
[381445935,1756206646643,-151.0,0.000409,30]
[381445936,1756206646653,-151.0,0.000409,30]
[381445937,1756206646662,-151.0,0.000409,30]
[381445938,1756206646671,-151.0,0.000409,30]
[381445939,1756206646681,-150.0,0.000409,120]
[381445940,1756206646691,-151.0,0.000409,30]
[381445941,1756206646700,-151.0,0.000409,30]
[381445942,1756206646713,-151.0,0.000409,30]
[381445943,1756206646723,-151.0,0.000409,30]
[381445944,1756206646733,-151.0,0.000409,30]
[381445945,1756206646743,-151.0,0.000409,30]
[381445946,1756206646756,-167.538852,0.000409,30]
[381445947,1756206646766,-151.0,0.000409,30]
[381445948,1756206646776,-910.912135,0.000409,30]
[381445949,1756206646786,-910.912135,0.000409,30]
[381445950,1756206646799,-910.912135,0.000409,30]
[381445951,1756206646816,-910.912135,0.000409,30]
[381445952,1756206646831,-910.912135,0.000409,30]
[381445953,1756206646841,-910.912135,0.000409,30]
[381445954,1756206646850,-910.912135,0.000409,30]
[381445955,1756206646860,-910.912135,0.000409,30]
[381445956,1756206646870,-910.912135,0.000409,30]
[381445957,1756206646879,-910.912135,0.000409,30]
[381445958,1756206646888,-910.912135,0.000409,30]
[381445959,1756206646898,-910.912135,0.000409,30]
[381445960,1756206646907,-151.0,0.000409,30]
[381445961,1756206646916,-151.0,0.000409,30]
[381445962,1756206646926,-151.0,0.000409,30]
[381445963,1756206646935,-151.0,0.000409,30]
[381445964,1756206646945,-151.0,0.000409,30]
[381445965,1756206646955,-193.160388,0.000409,30]
[381445966,1756206646965,-151.0,0.000409,30]
[381445967,1756206646974,-151.0,0.000409,30]
[381445968,1756206646983,-151.0,0.000409,30]
[381445969,1756206646992,-500.0,0.00040906,30]
[381445970,1756206647002,-500.0,0.0004091,30]
[381445971,1756206647011,-500.0,0.0004091,30]
[381445972,1756206647021,-134645.70290427,0.00040978,120]
[381447012,1756206928332,417.15472785,0.00027,7]
[381447016,1756207493128,163.548119,0.00013699,2]
[381447018,1756207717649,1069.09649263,0.00025,2]
[381447019,1756207719659,2632.68691197,0.00025,2]
[381447020,1756207720647,208.74526952,0.00025,2]
[381447021,1756207720841,521.55487665,0.00026,2]
[381447022,1756207721155,360.36018258,0.00025,2]
[381447023,1756207723621,19900.0,0.00026,2]
[381447024,1756207724404,1000.0,0.000255,2]
[381447025,1756207724928,554.43638044,0.00025,2]
[381447026,1756207725731,500.0,0.00025,2]
[381447027,1756207726872,30177.54947948,0.00025,2]
[381447028,1756207728603,229.06,0.0002465,2]
[381447029,1756207728628,390086.72358512,0.0002465,2]
[381447030,1756207728841,600.0,0.00025,2]
[381447031,1756207783153,229.06,0.000199,2]
[381447160,1756207838466,-160.0,0.00029365,2]
[381447161,1756207838477,-1515.62519601,0.00031798,110]
[381447162,1756207838491,-2519.91621684,0.00031809,2]
[381447163,1756207838500,-692.23,0.00031898,10]
[381447164,1756207838510,-576.86,0.00031898,10]
[381447165,1756207838519,-400.0,0.00031898,2]
[381447166,1756207838528,-173.11,0.00031899,3]
[381447167,1756207838541,-519.33,0.00031899,3]
[381447168,1756207838550,-400.18290858,0.00031899,2]
[381447170,1756207838560,-50000.0,0.000319,120]
[381447172,1756207838570,-151.0,0.000319,20]
[381447174,1756207838580,-151.0,0.000319,13]
[381447175,1756207838589,-151.0,0.000319,18]
[381447176,1756207838598,-151.0,0.000319,11]
[381447177,1756207838607,-228.58421001,0.00031907,2]
[381447178,1756207838616,-500.0,0.00031907,2]
[381447179,1756207838625,-500.0,0.00031907,2]
[381447180,1756207838634,-285.12397046,0.00031907,2]
[381447181,1756207838643,-500.0,0.00031907,2]
[381447182,1756207838653,-500.0,0.00031907,2]
[381447183,1756207838662,-500.0,0.00031907,2]
[381447184,1756207838671,-500.0,0.00031907,2]
[381447185,1756207838680,-500.0,0.00031907,2]
[381447186,1756207838689,-4221.70192714,0.00031908,2]
[381447187,1756207838698,-50000.0,0.00031908,60]
[381447188,1756207838708,-76562.75868128,0.00031908,120]
[381447189,1756207838717,-1103929.05895945,0.00031909,20]
[381447190,1756207838726,-5980.15968823,0.00031909,7]
[381447191,1756207838735,-14999.99999901,0.00031909,2]
[381447192,1756207838744,-858.77630464,0.00031909,30]
[381447193,1756207838753,-49857.30073436,0.00031909,2]
[381447194,1756207838762,-1189.90614119,0.00031909,2]
[381447195,1756207838772,-882.10293333,0.00031909,30]
[381447196,1756207838781,-579.06340537,0.00031909,5]
[381447197,1756207838791,-6409.8759588,0.00031909,30]
[381447198,1756207838800,-25408.52562198,0.00031909,2]
[381447199,1756207838812,-116784.84100439,0.00031909,2]
[381447200,1756207838822,-258.20860713,0.00031909,2]
[381447201,1756207838831,-39014.66,0.00032,7]
[381447202,1756207838840,-1394.37,0.00032,7]
[381447203,1756207838850,-3241.78,0.00032,7]
[381447204,1756207838859,-217.18350301,0.00032,7]
[381447205,1756207838868,-5617.81,0.00032,2]
[381447206,1756207838877,-590.59089894,0.00032627,2]
[381447207,1756207838886,-4181.54536781,0.0003288,2]
[381447208,1756207838895,-346.22,0.00033269,3]
[381447209,1756207838905,-560.0,0.00034312,2]
[381447210,1756207838914,-2054.44322154,0.00035,4]
[381447211,1756207838923,-3001.5405461,0.00035,2]
[381447212,1756207838933,-80745.46744977,0.00035,7]
[381447223,1756207843727,-199.0,0.00031808,120]
[381447225,1756207843737,-417.15472785,0.000319,120]
[381447227,1756207843746,-175.12376105,0.000319,120]
[381447230,1756207843782,-669.95584813,0.000319,120]
[381447231,1756207843793,-845.07960918,0.00032,7]
[381447232,1756207843802,-1515.62519598,0.00034577,120]
[381447233,1756207843811,-32364.53934667,0.00035,7]
[381447234,1756207843837,-125191.1183621,0.00035,7]
[381447238,1756207846644,-535.00128303,0.00030557,2]
[381447239,1756207846653,-480.72,0.0003499,10]
[381447240,1756207846662,-63022.97333506,0.00035,7]
[381447241,1756207846766,-510.06929334,0.00035,7]
[381447246,1756207902104,300.0,1.11e-06,120]
[381447247,1756207908787,300.0,1.11e-06,60]
[381447248,1756207952934,225.92333709,0.000199,2]
[381447249,1756208461427,163.548119,0.00013699,2]
[381447251,1756208576450,695.43046608,0.00025205,5]
[381447292,1756209034996,-625.06298974,0.00028997,2]
[381447293,1756209035050,-574.93701026,0.00028997,2]
[381447294,1756209035060,-1200.0,0.00028998,2]
[381447295,1756209035069,-300.0,0.00028998,2]
[381447296,1756209035078,-300.0,0.00028998,2]
[381447297,1756209035087,-300.0,0.00028998,2]
[381447298,1756209035096,-2815.06298974,0.00029,7]
[381447315,1756209037873,-27184.93701026,0.00029,7]
[381447316,1756209037883,-232.53539143,0.00029,7]
[381447317,1756209037894,-376.39720582,0.00029,7]
[381447318,1756209037903,-8564.04319016,0.00029,2]
[381447319,1756209037913,-216.09257821,0.00029,7]
[381447320,1756209037923,-217.18350301,0.00029,7]
[381447321,1756209037933,-30000.0,0.0003,7]
[381447322,1756209037942,-217.18350301,0.0003,7]
[381447323,1756209037952,-333.0,0.00030548,60]
[381447324,1756209037962,-337.36,0.00030989,10]
[381447325,1756209037972,-526.74,0.00030989,10]
[381447326,1756209037982,-438.95,0.00030989,10]
[381447327,1756209037992,-21817.1558995,0.0003099,2]
[381447328,1756209038003,-1087.83185425,0.0003099,2]
[381447329,1756209038012,-30000.0,0.00031,7]
[381447330,1756209038022,-2917.61,0.00031,7]
[381447331,1756209038032,-500.0,0.00031285,2]
[381447332,1756209038041,-257.97360844,0.00031285,2]
[381447333,1756209038050,-500.0,0.00031285,2]
[381447334,1756209038060,-500.0,0.00031285,2]
[381447335,1756209038070,-500.0,0.00031285,2]
[381447336,1756209038079,-500.0,0.00031285,2]
[381447337,1756209038092,-500.0,0.00031285,2]
[381447338,1756209038102,-343.21133808,0.00031285,2]
[381447339,1756209038111,-500.0,0.00031285,2]
[381447340,1756209038122,-1563.0,0.00031286,3]
[381447341,1756209038131,-412.0,0.00031286,3]
[381447342,1756209038143,-420.0,0.00031286,2]
[381447343,1756209038152,-394.0,0.00031286,3]
[381447344,1756209038162,-1151.0,0.00031419,3]
[381447345,1756209038172,-199.0,0.000318,120]
[381447346,1756209038182,-500.0,0.00031873,5]
[381447347,1756209038192,-150.521559,0.00031902,20]
[381447348,1756209038201,-831.49,0.0003199,3]
[381447349,1756209038211,-21817.1558995,0.0003199,2]
[381447350,1756209038221,-1087.83185425,0.0003199,2]
[381447351,1756209038231,-500.0,0.00032,5]
[381447352,1756209038241,-30000.0,0.00032,7]
[381447353,1756209038251,-724.69002,0.00032165,120]
[381447354,1756209038260,-186.842321,0.00032179,2]
[381447355,1756209038270,-500.0,0.00032421,5]
[381447356,1756209038280,-227.1849697,0.00032436,2]
[381447357,1756209038290,-254.5430988,0.00032436,2]
[381447358,1756209038299,-500.0,0.00032548,5]
[381447359,1756209038309,-277.15,0.0003298,3]
[381447360,1756209038319,-21817.1558995,0.0003298,2]
[381447361,1756209038329,-1087.83185425,0.0003298,2]
[381447362,1756209038338,-1108.62,0.0003299,3]
[381447363,1756209038348,-554.31,0.0003299,3]
[381447364,1756209038358,-21817.1558995,0.0003299,2]
[381447365,1756209038368,-1087.83185425,0.0003299,2]
[381447366,1756209038378,-30000.0,0.00033,7]
[381447368,1756209038387,-1254.93,0.00033,7]
[381447369,1756209038399,-35113.19,0.00033,14]
[381447370,1756209038408,-179.69451932,0.00033358,10]
[381447371,1756209038418,-150.521559,0.00033699,2]
[381447372,1756209038428,-587.0,0.00033754,2]
[381447373,1756209038437,-2917.61,0.000338,7]
[381447374,1756209038446,-500.0,0.000338,5]
[381447375,1756209038456,-5000.0,0.00033882,4]
[381447376,1756209038466,-1000.0,0.00034348,5]
[381447377,1756209038476,-554.3,0.0003435,3]
[381447378,1756209038486,-2217.24,0.0003436,3]
[381447379,1756209038495,-1108.62,0.0003436,3]
[381447380,1756209038505,-232.53539143,0.0003436,3]
[381447381,1756209038514,-376.39720582,0.0003436,3]
[381447382,1756209038524,-216.09257821,0.0003436,3]
[381447383,1756209038533,-217.18350301,0.0003436,3]
[381447384,1756209038543,-250.0,0.0003448,2]
[381447385,1756209038552,-150.521559,0.00034552,20]
[381447386,1756209038562,-1500.0,0.00034896,5]
[381447387,1756209038571,-160.0,0.00034953,2]
[381447388,1756209038582,-21817.1558995,0.0003498,2]
[381447389,1756209038591,-1087.83185425,0.0003498,2]
[381447390,1756209038600,-1722.64039975,0.00035,120]
[381447391,1756209038610,-2000.0,0.00035444,5]
[381447392,1756209038619,-500.0,0.00035616,7]
[381447393,1756209038629,-500.0,0.00035616,7]
[381447394,1756209038638,-191.41605319,0.00035616,7]
[381447395,1756209038649,-160.0,0.00035732,3]
[381447396,1756209038658,-150.521559,0.00035749,2]
[381447397,1756209038668,-21817.1558995,0.0003598,3]
[381447398,1756209038678,-1087.83185425,0.0003598,3]
[381447399,1756209038688,-21817.1558995,0.0003599,3]
[381447400,1756209038698,-1087.83185425,0.0003599,3]
[381447401,1756209038707,-217.18350301,0.0003599,3]
[381447402,1756209038717,-2500.0,0.00035992,5]
[381447403,1756209038726,-48797.58092343,0.00036,60]
[381447404,1756209038735,-311.94719537,0.00036,120]
[381447405,1756209038745,-1254.93,0.00036,7]
[381447406,1756209038755,-1646.0,0.00036168,7]